[Event "Late-Titled-Tuesday-Blitz-September-05-2023"]
[Site "Chess.com"]
[Date "2023.09.05"]
[Round "3"]
[White "Dewarfd"]
[Black "Djager97"]
[Result "0-1"]
[WhiteElo "2192"]
[BlackElo "2513"]
[TimeControl "180+1"]
[EndTime "14:28:55 PDT"]
[Termination "Djager97 won by checkmate"]

1. d4 {[%clk 0:03:00]} 1... d5 {[%clk 0:02:59.2]} 2. e3 {[%clk 0:02:59.7]} 2...
Nf6 {[%clk 0:02:58.9]} 3. Nf3 {[%clk 0:02:59.7]} 3... c5 {[%clk 0:02:57.1]} 4.
dxc5 {[%clk 0:02:59.2]} 4... e6 {[%clk 0:02:54.6]} 5. a3 {[%clk 0:02:59]} 5...
Bxc5 {[%clk 0:02:46.9]} 6. c4 {[%clk 0:02:57.1]} 6... a5 {[%clk 0:02:36.9]} 7.
b3 {[%clk 0:02:53.4]} 7... Nc6 {[%clk 0:02:34.7]} 8. Bb2 {[%clk 0:02:51.6]} 8...
O-O {[%clk 0:02:30]} 9. Nc3 {[%clk 0:02:49.6]} 9... Qe7 {[%clk 0:01:59.9]} 10.
cxd5 {[%clk 0:02:48.1]} 10... exd5 {[%clk 0:02:00.8]} 11. Nxd5 {[%clk 0:02:24]}
11... Nxd5 {[%clk 0:02:01.7]} 12. Qxd5 {[%clk 0:02:24.3]} 12... Be6 {[%clk
0:02:01.4]} 13. Qg5 {[%clk 0:02:21]} 13... Qxg5 {[%clk 0:01:59.6]} 14. Nxg5
{[%clk 0:02:21.5]} 14... Bxb3 {[%clk 0:01:59.7]} 15. Bd3 {[%clk 0:02:15.4]}
15... h6 {[%clk 0:01:35.5]} 16. Ne4 {[%clk 0:02:14.9]} 16... Be7 {[%clk
0:01:34]} 17. Ke2 {[%clk 0:02:01.6]} 17... f5 {[%clk 0:01:29]} 18. Nd2 {[%clk
0:02:01.2]} 18... Be6 {[%clk 0:01:23.4]} 19. Bc4 {[%clk 0:01:58]} 19... Bxc4+
{[%clk 0:01:21.9]} 20. Nxc4 {[%clk 0:01:58.4]} 20... b5 {[%clk 0:01:12.7]} 21.
Nb6 {[%clk 0:01:50.5]} 21... Rad8 {[%clk 0:01:05]} 22. Rad1 {[%clk 0:01:49.9]}
22... b4 {[%clk 0:00:45]} 23. axb4 {[%clk 0:01:46.6]} 23... Bxb4 {[%clk
0:00:37.8]} 24. Nd5 {[%clk 0:01:36.4]} 24... Bd6 {[%clk 0:00:29.8]} 25. Rd3
{[%clk 0:01:33.8]} 25... Nb4 {[%clk 0:00:29.1]} 26. Nxb4 {[%clk 0:01:33.2]}
26... Bxb4 {[%clk 0:00:29.8]} 27. Rhd1 {[%clk 0:01:32.7]} 27... Rxd3 {[%clk
0:00:29.2]} 28. Rxd3 {[%clk 0:01:32.2]} 28... Rc8 {[%clk 0:00:29.3]} 29. Kf3
{[%clk 0:01:24.9]} 29... Rc7 {[%clk 0:00:25.9]} 30. Be5 {[%clk 0:01:24.3]} 30...
Ra7 {[%clk 0:00:24.6]} 31. Rb3 {[%clk 0:01:23.3]} 31... Kf7 {[%clk 0:00:23.6]}
32. Bc3 {[%clk 0:01:21.4]} 32... Bxc3 {[%clk 0:00:22.2]} 33. Rxc3 {[%clk
0:01:21.4]} 33... a4 {[%clk 0:00:22.8]} 34. Ra3 {[%clk 0:01:21.7]} 34... Ke6
{[%clk 0:00:23.1]} 35. e4 {[%clk 0:01:21.6]} 35... Ke5 {[%clk 0:00:19.6]} 36.
exf5 {[%clk 0:01:21.3]} 36... Kxf5 {[%clk 0:00:20.5]} 37. g4+ {[%clk 0:01:21.4]}
37... Ke5 {[%clk 0:00:20.7]} 38. h4 {[%clk 0:01:21]} 38... Kd4 {[%clk
0:00:20.4]} 39. Kf4 {[%clk 0:01:20.9]} 39... Kc4 {[%clk 0:00:19.2]} 40. Kf5
{[%clk 0:01:18.3]} 40... Kb4 {[%clk 0:00:19]} 41. Ra1 {[%clk 0:01:17.3]} 41...
a3 {[%clk 0:00:19.9]} 42. Kg6 {[%clk 0:01:16.2]} 42... Kb3 {[%clk 0:00:19.2]}
43. f4 {[%clk 0:01:16.1]} 43... Kb2 {[%clk 0:00:19.3]} 44. Rxa3 {[%clk
0:01:00.4]} 44... Kxa3 {[%clk 0:00:18]} 45. f5 {[%clk 0:00:59.8]} 45... Kb4
{[%clk 0:00:13.7]} 46. f6 {[%clk 0:00:59.9]} 46... gxf6 {[%clk 0:00:13.2]} 47.
Kxh6 {[%clk 0:01:00.1]} 47... Kc5 {[%clk 0:00:12.4]} 48. Kg6 {[%clk 0:01:00]}
48... Ra4 {[%clk 0:00:11.7]} 49. h5 {[%clk 0:00:56.9]} 49... Rxg4+ {[%clk
0:00:11.1]} 50. Kxf6 {[%clk 0:00:56.7]} 50... Rh4 {[%clk 0:00:10]} 51. Kg6
{[%clk 0:00:55.3]} 51... Kd6 {[%clk 0:00:08.9]} 52. h6 {[%clk 0:00:55.4]} 52...
Ke7 {[%clk 0:00:03.1]} 53. Kg7 {[%clk 0:00:52.6]} 53... Rg4+ {[%clk 0:00:02.5]}
54. Kh8 {[%clk 0:00:49.4]} 54... Kf6 {[%clk 0:00:03.4]} 55. h7 {[%clk
0:00:49.3]} 55... Ra4 {[%clk 0:00:02.5]} 56. Kg8 {[%clk 0:00:46.7]} 56... Ra8#
{[%clk 0:00:03.4]} 0-1

[Event "Late-Titled-Tuesday-Blitz-September-05-2023"]
[Site "Chess.com"]
[Date "2023.09.05"]
[Round "3"]
[White "platy3"]
[Black "MustafayevFarid2004"]
[Result "0-1"]
[WhiteElo "2904"]
[BlackElo "2670"]
[TimeControl "180+1"]
[EndTime "14:28:57 PDT"]
[Termination "MustafayevFarid2004 won by resignation"]

1. e4 {[%clk 0:03:00.9]} 1... c6 {[%clk 0:02:58.5]} 2. Nf3 {[%clk 0:03:00.4]}
2... d5 {[%clk 0:02:58.9]} 3. Nc3 {[%clk 0:03:01.3]} 3... dxe4 {[%clk
0:02:59.8]} 4. Nxe4 {[%clk 0:03:01.4]} 4... Nf6 {[%clk 0:03:00.7]} 5. Qe2 {[%clk
0:03:01.6]} 5... Nxe4 {[%clk 0:03:00.9]} 6. Qxe4 {[%clk 0:03:01.5]} 6... Qd5
{[%clk 0:03:01.7]} 7. Qf4 {[%clk 0:02:58.5]} 7... Qf5 {[%clk 0:03:01.4]} 8. d3
{[%clk 0:02:50.2]} 8... Qxf4 {[%clk 0:03:00.6]} 9. Bxf4 {[%clk 0:02:49.6]} 9...
Bf5 {[%clk 0:02:58.4]} 10. Be2 {[%clk 0:02:43.2]} 10... e6 {[%clk 0:02:58.1]}
11. Nh4 {[%clk 0:02:41.4]} 11... Bg6 {[%clk 0:02:56.3]} 12. Nxg6 {[%clk
0:02:41.1]} 12... hxg6 {[%clk 0:02:57]} 13. O-O-O {[%clk 0:02:40.7]} 13... Nd7
{[%clk 0:02:56.9]} 14. d4 {[%clk 0:02:40.3]} 14... Be7 {[%clk 0:02:56.2]} 15.
Bf3 {[%clk 0:02:40.1]} 15... O-O-O {[%clk 0:02:52.7]} 16. g3 {[%clk 0:02:39.9]}
16... Nf6 {[%clk 0:02:47.6]} 17. h4 {[%clk 0:02:39.1]} 17... Nd5 {[%clk
0:02:44.3]} 18. Bd2 {[%clk 0:02:39.3]} 18... b5 {[%clk 0:02:43.9]} 19. Kb1
{[%clk 0:02:38.6]} 19... Kb7 {[%clk 0:02:42.7]} 20. Rhe1 {[%clk 0:02:38]} 20...
Bf6 {[%clk 0:02:41.2]} 21. c3 {[%clk 0:02:34.1]} 21... Rhe8 {[%clk 0:02:40.6]}
22. Bc1 {[%clk 0:02:31.6]} 22... Kb6 {[%clk 0:02:33.9]} 23. Re2 {[%clk
0:02:24.8]} 23... a5 {[%clk 0:02:26.8]} 24. a4 {[%clk 0:02:13.3]} 24... Ka6
{[%clk 0:02:04.9]} 25. axb5+ {[%clk 0:01:56.7]} 25... cxb5 {[%clk 0:02:04.8]}
26. Bg5 {[%clk 0:01:49.6]} 26... Bxg5 {[%clk 0:02:00.8]} 27. hxg5 {[%clk
0:01:50.5]} 27... Rh8 {[%clk 0:02:01.2]} 28. Rh1 {[%clk 0:01:43.5]} 28... Nb6
{[%clk 0:01:56.3]} 29. Kc2 {[%clk 0:01:41.2]} 29... Rxh1 {[%clk 0:01:54.4]} 30.
Bxh1 {[%clk 0:01:41.4]} 30... Rh8 {[%clk 0:01:55]} 31. Be4 {[%clk 0:01:39.1]}
31... Rh2 {[%clk 0:01:53.5]} 32. Bd3 {[%clk 0:01:39.3]} 32... Nd5 {[%clk
0:01:48.1]} 33. f4 {[%clk 0:01:37.8]} 33... Ne3+ {[%clk 0:01:39.9]} 34. Kd2
{[%clk 0:01:36.5]} 34... Nf1+ {[%clk 0:01:38.5]} 35. Ke1 {[%clk 0:01:29.8]}
35... Rxe2+ {[%clk 0:01:38.3]} 36. Kxe2 {[%clk 0:01:30.7]} 36... Nxg3+ {[%clk
0:01:38.6]} 37. Kf3 {[%clk 0:01:31.5]} 37... Nf5 {[%clk 0:01:37.1]} 38. Ke4
{[%clk 0:01:30.6]} 38... Nd6+ {[%clk 0:01:24.7]} 39. Ke5 {[%clk 0:00:57.7]}
39... Nc8 {[%clk 0:01:24.4]} 40. Bxg6 {[%clk 0:00:37.8]} 40... fxg6 {[%clk
0:01:24.2]} 41. Kxe6 {[%clk 0:00:38.4]} 41... Nb6 {[%clk 0:01:20.4]} 42. Kf7
{[%clk 0:00:34.2]} 42... Nd5 {[%clk 0:01:19.1]} 43. Kxg6 {[%clk 0:00:32.6]}
43... Nxf4+ {[%clk 0:01:18.4]} 44. Kxg7 {[%clk 0:00:33]} 44... Kb6 {[%clk
0:01:16.8]} 45. Kf7 {[%clk 0:00:28.6]} 45... Kc6 {[%clk 0:01:04.5]} 46. g6
{[%clk 0:00:28.9]} 46... Nxg6 {[%clk 0:00:42.2]} 47. Kxg6 {[%clk 0:00:29.8]}
47... Kd5 {[%clk 0:00:40]} 48. Kf5 {[%clk 0:00:08.2]} 48... b4 {[%clk
0:00:39.7]} 49. cxb4 {[%clk 0:00:02.7]} 49... axb4 {[%clk 0:00:39.2]} 50. Kf6
{[%clk 0:00:02.4]} 50... Kxd4 {[%clk 0:00:39.1]} 51. Ke6 {[%clk 0:00:03]} 51...
b3 {[%clk 0:00:38.4]} 52. Kd6 {[%clk 0:00:02.6]} 52... Kd3 {[%clk 0:00:38.6]}
53. Kc5 {[%clk 0:00:03.2]} 53... Kc2 {[%clk 0:00:38.7]} 0-1

[Event "Late-Titled-Tuesday-Blitz-September-05-2023"]
[Site "Chess.com"]
[Date "2023.09.05"]
[Round "3"]
[White "boldpilot22622"]
[Black "a-z30"]
[Result "1/2-1/2"]
[WhiteElo "2523"]
[BlackElo "2311"]
[TimeControl "180+1"]
[EndTime "14:29:00 PDT"]
[Termination "Game drawn by repetition"]

1. e4 {[%clk 0:03:00.7]} 1... d6 {[%clk 0:03:00.9]} 2. d4 {[%clk 0:02:59.9]}
2... Nf6 {[%clk 0:03:01.2]} 3. Nc3 {[%clk 0:03:00.2]} 3... g6 {[%clk 0:03:01.8]}
4. f4 {[%clk 0:02:58]} 4... Bg7 {[%clk 0:03:02.1]} 5. Be2 {[%clk 0:02:57.1]}
5... O-O {[%clk 0:03:01.3]} 6. Be3 {[%clk 0:02:50.9]} 6... e5 {[%clk 0:02:43.6]}
7. Nf3 {[%clk 0:02:29.5]} 7... exf4 {[%clk 0:02:15.7]} 8. Bxf4 {[%clk
0:02:20.5]} 8... Re8 {[%clk 0:02:15.4]} 9. Qd3 {[%clk 0:02:15.1]} 9... Nxe4
{[%clk 0:02:02.6]} 10. Nxe4 {[%clk 0:02:12.9]} 10... Bf5 {[%clk 0:02:02]} 11.
Nfd2 {[%clk 0:02:11.1]} 11... d5 {[%clk 0:02:01.1]} 12. Qc3 {[%clk 0:02:06.5]}
12... dxe4 {[%clk 0:01:57.3]} 13. Qxc7 {[%clk 0:01:36.7]} 13... Qxc7 {[%clk
0:01:24.9]} 14. Bxc7 {[%clk 0:01:37.6]} 14... e3 {[%clk 0:01:24.2]} 15. Nf3
{[%clk 0:01:31.9]} 15... Bxc2 {[%clk 0:01:23.3]} 16. O-O {[%clk 0:01:30.1]}
16... Nc6 {[%clk 0:01:22.2]} 17. Rac1 {[%clk 0:01:19.6]} 17... Be4 {[%clk
0:01:21.1]} 18. Ng5 {[%clk 0:01:10.4]} 18... Bd5 {[%clk 0:00:33.6]} 19. Bc4
{[%clk 0:01:10.1]} 19... Bxc4 {[%clk 0:00:30.5]} 20. Rxc4 {[%clk 0:01:09.4]}
20... Nxd4 {[%clk 0:00:29.2]} 21. Re1 {[%clk 0:00:46.2]} 21... h6 {[%clk
0:00:25.9]} 22. Nf3 {[%clk 0:00:44.4]} 22... Nxf3+ {[%clk 0:00:24]} 23. gxf3
{[%clk 0:00:45.3]} 23... Rac8 {[%clk 0:00:24.6]} 24. b3 {[%clk 0:00:45.6]} 24...
Re7 {[%clk 0:00:23.4]} 25. Bf4 {[%clk 0:00:44.6]} 25... Rxc4 {[%clk 0:00:24.3]}
26. bxc4 {[%clk 0:00:45.2]} 26... e2 {[%clk 0:00:21.9]} 27. Bd2 {[%clk
0:00:36.7]} 27... Bd4+ {[%clk 0:00:20.4]} 28. Kg2 {[%clk 0:00:36.8]} 28... h5
{[%clk 0:00:20]} 29. f4 {[%clk 0:00:34.3]} 29... f5 {[%clk 0:00:18.3]} 30. Kf3
{[%clk 0:00:33.9]} 30... Kf7 {[%clk 0:00:18.1]} 31. Rxe2 {[%clk 0:00:32.7]}
31... Rxe2 {[%clk 0:00:19]} 32. Kxe2 {[%clk 0:00:33.4]} 32... Ke6 {[%clk
0:00:19.1]} 33. h3 {[%clk 0:00:32.4]} 33... a6 {[%clk 0:00:19]} 34. Kd3 {[%clk
0:00:33.3]} 34... Bc5 {[%clk 0:00:18.8]} 35. a4 {[%clk 0:00:31.3]} 35... Bd6
{[%clk 0:00:16.2]} 36. Bc1 {[%clk 0:00:30.7]} 36... Kd7 {[%clk 0:00:15]} 37. Kd4
{[%clk 0:00:30.5]} 37... Kc6 {[%clk 0:00:15.9]} 38. Bd2 {[%clk 0:00:27.8]} 38...
Kd7 {[%clk 0:00:13.4]} 39. Kd5 {[%clk 0:00:25.1]} 39... Bc7 {[%clk 0:00:13.9]}
40. Bc1 {[%clk 0:00:22.3]} 40... Ke7 {[%clk 0:00:14.3]} 41. Bd2 {[%clk
0:00:20.9]} 41... Kf7 {[%clk 0:00:14.4]} 42. Bc1 {[%clk 0:00:20]} 42... Kf6
{[%clk 0:00:13.9]} 43. Bb2+ {[%clk 0:00:19.4]} 43... Kf7 {[%clk 0:00:14.3]} 44.
Bc1 {[%clk 0:00:20]} 44... Bb8 {[%clk 0:00:13.8]} 45. Bd2 {[%clk 0:00:19.7]}
45... Bc7 {[%clk 0:00:13.5]} 46. Bc1 {[%clk 0:00:19.9]} 1/2-1/2

[Event "Late-Titled-Tuesday-Blitz-September-05-2023"]
[Site "Chess.com"]
[Date "2023.09.05"]
[Round "3"]
[White "GrigorGrigorov"]
[Black "JacksterThePro"]
[Result "1-0"]
[WhiteElo "2874"]
[BlackElo "2425"]
[TimeControl "180+1"]
[EndTime "14:29:01 PDT"]
[Termination "GrigorGrigorov won on time"]

1. d4 {[%clk 0:03:00.9]} 1... Nf6 {[%clk 0:02:59]} 2. Nf3 {[%clk 0:03:01.1]}
2... d5 {[%clk 0:02:58.3]} 3. c4 {[%clk 0:03:00.2]} 3... e6 {[%clk 0:02:58.1]}
4. g3 {[%clk 0:03:00.5]} 4... Be7 {[%clk 0:02:56.4]} 5. Bg2 {[%clk 0:02:59.9]}
5... O-O {[%clk 0:02:56.8]} 6. O-O {[%clk 0:02:59.7]} 6... dxc4 {[%clk
0:02:56.5]} 7. Qc2 {[%clk 0:02:59.7]} 7... b6 {[%clk 0:02:56.2]} 8. Bg5 {[%clk
0:02:58.4]} 8... Nd5 {[%clk 0:02:56.6]} 9. Bxe7 {[%clk 0:02:57.7]} 9... Qxe7
{[%clk 0:02:57.4]} 10. Nbd2 {[%clk 0:02:55.9]} 10... b5 {[%clk 0:02:56.6]} 11.
b3 {[%clk 0:02:52.3]} 11... c3 {[%clk 0:02:56]} 12. Ne4 {[%clk 0:02:51]} 12...
b4 {[%clk 0:02:56.6]} 13. a3 {[%clk 0:02:50]} 13... Nc6 {[%clk 0:02:57.1]} 14.
axb4 {[%clk 0:02:46]} 14... Ncxb4 {[%clk 0:02:58]} 15. Qc1 {[%clk 0:02:43]}
15... c2 {[%clk 0:02:51.1]} 16. Re1 {[%clk 0:02:29.6]} 16... a5 {[%clk
0:02:43.9]} 17. Qd2 {[%clk 0:02:22.9]} 17... Bd7 {[%clk 0:02:41.1]} 18. Nc5
{[%clk 0:02:21.7]} 18... Bb5 {[%clk 0:02:34.5]} 19. e4 {[%clk 0:02:13.7]} 19...
Nb6 {[%clk 0:02:24.8]} 20. Qc3 {[%clk 0:01:56.4]} 20... Rfd8 {[%clk 0:02:01.3]}
21. Rec1 {[%clk 0:01:37.9]} 21... h6 {[%clk 0:01:54.2]} 22. Ne1 {[%clk
0:01:33.6]} 22... Ra7 {[%clk 0:01:29.9]} 23. Nxc2 {[%clk 0:01:32.5]} 23... Qf6
{[%clk 0:01:10.5]} 24. e5 {[%clk 0:01:15.1]} 24... Qg5 {[%clk 0:00:56.3]} 25.
Nxb4 {[%clk 0:01:09.9]} 25... axb4 {[%clk 0:00:55.1]} 26. Qxb4 {[%clk
0:01:10.1]} 26... Rxa1 {[%clk 0:00:53.6]} 27. Rxa1 {[%clk 0:01:10.5]} 27... Be2
{[%clk 0:00:43]} 28. Re1 {[%clk 0:00:55.6]} 28... Qh5 {[%clk 0:00:29.2]} 29. Nb7
{[%clk 0:00:28.8]} 29... Rd7 {[%clk 0:00:20.2]} 30. Nc5 {[%clk 0:00:26.6]} 30...
Rd8 {[%clk 0:00:20]} 31. Qc3 {[%clk 0:00:21.8]} 31... Nd5 {[%clk 0:00:12.2]} 32.
Qc2 {[%clk 0:00:20]} 32... Bf3 {[%clk 0:00:11]} 33. Bf1 {[%clk 0:00:16.4]} 33...
Nf4 {[%clk 0:00:07.4]} 34. Qc3 {[%clk 0:00:09.8]} 34... Rxd4 {[%clk 0:00:04.4]}
35. h4 {[%clk 0:00:06.6]} 35... Ng6 {[%clk 0:00:02.6]} 36. Qxd4 {[%clk 0:00:06]}
36... Qf5 {[%clk 0:00:01.8]} 37. Bg2 {[%clk 0:00:05.6]} 37... Bxg2 {[%clk
0:00:01.3]} 38. Kxg2 {[%clk 0:00:06.5]} 38... Qc2 {[%clk 0:00:01.3]} 39. b4
{[%clk 0:00:05.5]} 1-0

[Event "Late-Titled-Tuesday-Blitz-September-05-2023"]
[Site "Chess.com"]
[Date "2023.09.05"]
[Round "3"]
[White "MajorCoast"]
[Black "DvaHrasta"]
[Result "0-1"]
[WhiteElo "2298"]
[BlackElo "2497"]
[TimeControl "180+1"]
[EndTime "14:29:01 PDT"]
[Termination "DvaHrasta won on time"]

1. d4 {[%clk 0:03:00.9]} 1... Nf6 {[%clk 0:02:59.4]} 2. Nf3 {[%clk 0:03:01.2]}
2... e6 {[%clk 0:02:58.4]} 3. Bf4 {[%clk 0:03:01]} 3... d5 {[%clk 0:02:57.2]} 4.
e3 {[%clk 0:03:01.5]} 4... Bd6 {[%clk 0:02:57.2]} 5. Bg3 {[%clk 0:03:01.9]} 5...
O-O {[%clk 0:02:57]} 6. c3 {[%clk 0:03:01.4]} 6... b6 {[%clk 0:02:57.1]} 7. Bd3
{[%clk 0:03:01.5]} 7... c5 {[%clk 0:02:57.2]} 8. Nbd2 {[%clk 0:03:01.3]} 8...
Ba6 {[%clk 0:02:57.3]} 9. Bxa6 {[%clk 0:02:57.7]} 9... Nxa6 {[%clk 0:02:58.2]}
10. Qa4 {[%clk 0:02:57.8]} 10... Nc7 {[%clk 0:02:57.6]} 11. Qc6 {[%clk
0:02:55.5]} 11... Bxg3 {[%clk 0:02:52.4]} 12. hxg3 {[%clk 0:02:56.4]} 12... Qd7
{[%clk 0:02:46.2]} 13. Ne5 {[%clk 0:02:48.3]} 13... Qxc6 {[%clk 0:02:43]} 14.
Nxc6 {[%clk 0:02:49.2]} 14... Rfe8 {[%clk 0:02:40.2]} 15. Ke2 {[%clk 0:02:32.8]}
15... Nd7 {[%clk 0:02:38.8]} 16. Nf3 {[%clk 0:02:15.2]} 16... f6 {[%clk
0:02:37.3]} 17. dxc5 {[%clk 0:02:15.4]} 17... bxc5 {[%clk 0:02:34]} 18. Rh4
{[%clk 0:02:06.5]} 18... c4 {[%clk 0:02:23.2]} 19. Rah1 {[%clk 0:02:01.7]} 19...
h6 {[%clk 0:02:22.2]} 20. Ncd4 {[%clk 0:01:57.7]} 20... Nc5 {[%clk 0:02:18]} 21.
Ne1 {[%clk 0:01:48.5]} 21... Rab8 {[%clk 0:02:13.9]} 22. b4 {[%clk 0:01:46.5]}
22... cxb3 {[%clk 0:02:13.4]} 23. Nxb3 {[%clk 0:01:41.1]} 23... Nxb3 {[%clk
0:02:12.9]} 24. axb3 {[%clk 0:01:42]} 24... Rxb3 {[%clk 0:02:12.8]} 25. Ra4
{[%clk 0:01:41.2]} 25... Rb2+ {[%clk 0:02:11.2]} 26. Kf3 {[%clk 0:01:40.1]}
26... a6 {[%clk 0:02:09.3]} 27. Nd3 {[%clk 0:01:39.5]} 27... Rc2 {[%clk
0:01:57.9]} 28. Nc5 {[%clk 0:01:21.7]} 28... e5 {[%clk 0:01:46.1]} 29. g4 {[%clk
0:01:07.8]} 29... Rxc3 {[%clk 0:01:30.3]} 30. Nxa6 {[%clk 0:01:07.1]} 30... e4+
{[%clk 0:01:22.7]} 31. Kg3 {[%clk 0:01:03.1]} 31... Nxa6 {[%clk 0:01:19.4]} 32.
Rxa6 {[%clk 0:01:04]} 32... d4 {[%clk 0:01:19.8]} 33. Kf4 {[%clk 0:00:41.2]}
33... d3 {[%clk 0:01:15.6]} 34. Rd6 {[%clk 0:00:40.9]} 34... Rc2 {[%clk
0:01:10.5]} 35. f3 {[%clk 0:00:29.9]} 35... Rxg2 {[%clk 0:01:09.6]} 36. fxe4
{[%clk 0:00:28.1]} 36... d2 {[%clk 0:01:06.5]} 37. Rd1 {[%clk 0:00:27.1]} 37...
Re5 {[%clk 0:00:36.7]} 38. R1xd2 {[%clk 0:00:20.5]} 38... Rg1 {[%clk 0:00:36.4]}
39. Rf2 {[%clk 0:00:15.1]} 39... Rg5 {[%clk 0:00:32.7]} 40. Ra2 {[%clk
0:00:07.8]} 40... R1xg4+ {[%clk 0:00:31.6]} 41. Kf3 {[%clk 0:00:08.1]} 41...
Rg3+ {[%clk 0:00:31.9]} 42. Kf4 {[%clk 0:00:05.5]} 42... Kh7 {[%clk 0:00:30.5]}
43. Ra7 {[%clk 0:00:03.4]} 43... R5g4+ {[%clk 0:00:21.2]} 44. Kf5 {[%clk
0:00:03.3]} 44... h5 {[%clk 0:00:21.5]} 45. Rxf6 {[%clk 0:00:02.2]} 45... Rf3+
{[%clk 0:00:21.1]} 0-1

[Event "Late-Titled-Tuesday-Blitz-September-05-2023"]
[Site "Chess.com"]
[Date "2023.09.05"]
[Round "3"]
[White "korason34"]
[Black "artin10862"]
[Result "1-0"]
[WhiteElo "2692"]
[BlackElo "2936"]
[TimeControl "180+1"]
[EndTime "14:29:06 PDT"]
[Termination "korason34 won by checkmate"]

1. e4 {[%clk 0:03:00.9]} 1... c5 {[%clk 0:02:59.6]} 2. Nf3 {[%clk 0:03:00.4]}
2... d6 {[%clk 0:03:00.2]} 3. d4 {[%clk 0:02:57.4]} 3... cxd4 {[%clk 0:03:01.1]}
4. Nxd4 {[%clk 0:02:56.4]} 4... Nf6 {[%clk 0:02:59.2]} 5. Nc3 {[%clk 0:02:56.5]}
5... a6 {[%clk 0:02:59.8]} 6. f3 {[%clk 0:02:50.8]} 6... e6 {[%clk 0:02:56.2]}
7. Be3 {[%clk 0:02:38.8]} 7... b5 {[%clk 0:02:45.1]} 8. g4 {[%clk 0:02:36.6]}
8... Bb7 {[%clk 0:01:57.7]} 9. g5 {[%clk 0:02:34.2]} 9... Nfd7 {[%clk
0:01:57.6]} 10. Qd2 {[%clk 0:02:31.5]} 10... Nb6 {[%clk 0:01:54.5]} 11. O-O-O
{[%clk 0:02:22.6]} 11... N8d7 {[%clk 0:01:53.7]} 12. Nb3 {[%clk 0:02:04.6]}
12... Rc8 {[%clk 0:01:49.9]} 13. Kb1 {[%clk 0:01:42.8]} 13... Ne5 {[%clk
0:01:43.4]} 14. Na5 {[%clk 0:01:37.5]} 14... Ba8 {[%clk 0:01:38.7]} 15. Qf2
{[%clk 0:01:36.4]} 15... Rxc3 {[%clk 0:01:17]} 16. Bxb6 {[%clk 0:01:08.5]} 16...
Rxf3 {[%clk 0:01:16.5]} 17. Qxf3 {[%clk 0:00:47.1]} 17... Qxb6 {[%clk
0:01:05.7]} 18. Qc3 {[%clk 0:00:47.2]} 18... Bxe4 {[%clk 0:01:02.6]} 19. Rg1
{[%clk 0:00:34.2]} 19... Be7 {[%clk 0:00:52.5]} 20. Bg2 {[%clk 0:00:29.1]} 20...
Bxg2 {[%clk 0:00:42.5]} 21. Rxg2 {[%clk 0:00:30]} 21... O-O {[%clk 0:00:43.1]}
22. Nb3 {[%clk 0:00:30.2]} 22... Qb7 {[%clk 0:00:38.8]} 23. Qg3 {[%clk
0:00:27.8]} 23... Ra8 {[%clk 0:00:30.9]} 24. h4 {[%clk 0:00:25.8]} 24... a5
{[%clk 0:00:30.8]} 25. Nd4 {[%clk 0:00:22.2]} 25... a4 {[%clk 0:00:25.3]} 26. h5
{[%clk 0:00:21.2]} 26... b4 {[%clk 0:00:20.1]} 27. g6 {[%clk 0:00:21.1]} 27...
hxg6 {[%clk 0:00:19.7]} 28. hxg6 {[%clk 0:00:21.3]} 28... Nxg6 {[%clk
0:00:20.6]} 29. Nxe6 {[%clk 0:00:20.7]} 29... Bf6 {[%clk 0:00:17.6]} 30. Rgd2
{[%clk 0:00:13.9]} 30... Ne5 {[%clk 0:00:12.9]} 31. Nf4 {[%clk 0:00:08.1]} 31...
Nc4 {[%clk 0:00:10.2]} 32. Rh2 {[%clk 0:00:06.8]} 32... Rc8 {[%clk 0:00:06.6]}
33. Qh3 {[%clk 0:00:04.5]} 33... Kf8 {[%clk 0:00:05]} 34. Nd5 {[%clk 0:00:02.4]}
34... Na3+ {[%clk 0:00:03.4]} 35. Ka1 {[%clk 0:00:02]} 35... Nxc2+ {[%clk
0:00:02.9]} 36. Rxc2 {[%clk 0:00:02.6]} 36... Rxc2 {[%clk 0:00:01.3]} 37. Qh8#
{[%clk 0:00:03.2]} 1-0

[Event "Late-Titled-Tuesday-Blitz-September-05-2023"]
[Site "Chess.com"]
[Date "2023.09.05"]
[Round "3"]
[White "WindWhistler11"]
[Black "nitpicker"]
[Result "1-0"]
[WhiteElo "2472"]
[BlackElo "2272"]
[TimeControl "180+1"]
[EndTime "14:29:09 PDT"]
[Termination "WindWhistler11 won on time"]

1. Nf3 {[%clk 0:02:55.7]} 1... Nf6 {[%clk 0:02:59.1]} 2. g3 {[%clk 0:02:49.4]}
2... d5 {[%clk 0:02:58.4]} 3. c4 {[%clk 0:02:50.3]} 3... d4 {[%clk 0:02:57.5]}
4. Bg2 {[%clk 0:02:50.9]} 4... Nc6 {[%clk 0:02:55.7]} 5. e3 {[%clk 0:02:51.8]}
5... dxe3 {[%clk 0:02:44.8]} 6. fxe3 {[%clk 0:02:50.2]} 6... Qd3 {[%clk
0:02:44.4]} 7. Bf1 {[%clk 0:02:37.7]} 7... Qd6 {[%clk 0:02:29.6]} 8. d4 {[%clk
0:02:31.3]} 8... e5 {[%clk 0:02:28.8]} 9. d5 {[%clk 0:02:26.3]} 9... e4 {[%clk
0:02:26.6]} 10. Nd4 {[%clk 0:02:12.3]} 10... Ne5 {[%clk 0:02:24.6]} 11. Be2
{[%clk 0:02:07.5]} 11... Bh3 {[%clk 0:02:23.7]} 12. Nb5 {[%clk 0:02:01.7]} 12...
Qd7 {[%clk 0:02:00.4]} 13. N1c3 {[%clk 0:01:25.2]} 13... Bg2 {[%clk 0:01:41.7]}
14. Rg1 {[%clk 0:01:22]} 14... Nf3+ {[%clk 0:01:40]} 15. Bxf3 {[%clk 0:01:03.3]}
15... Bxf3 {[%clk 0:01:40.2]} 16. Qa4 {[%clk 0:01:02.9]} 16... Kd8 {[%clk
0:01:21.3]} 17. b3 {[%clk 0:00:45.5]} 17... a6 {[%clk 0:01:14]} 18. Nd4 {[%clk
0:00:28]} 18... Bg4 {[%clk 0:01:13.5]} 19. Qxd7+ {[%clk 0:00:19.8]} 19... Kxd7
{[%clk 0:01:12.7]} 20. Kd2 {[%clk 0:00:17.3]} 20... Bd6 {[%clk 0:01:08.3]} 21.
Bb2 {[%clk 0:00:15]} 21... h5 {[%clk 0:01:08.4]} 22. h4 {[%clk 0:00:10.7]} 22...
c5 {[%clk 0:00:59]} 23. dxc6+ {[%clk 0:00:06.4]} 23... bxc6 {[%clk 0:00:59.3]}
24. Raf1 {[%clk 0:00:06.7]} 24... Be5 {[%clk 0:00:43.6]} 25. Na4 {[%clk
0:00:06.5]} 25... Rhe8 {[%clk 0:00:34.4]} 26. Nb6+ {[%clk 0:00:06]} 26... Kc7
{[%clk 0:00:33.6]} 27. Nxa8+ {[%clk 0:00:06.9]} 27... Rxa8 {[%clk 0:00:31]} 28.
Kc2 {[%clk 0:00:07.2]} 28... Re8 {[%clk 0:00:24.1]} 29. Nf5 {[%clk 0:00:02]}
29... Bxb2 {[%clk 0:00:10.3]} 30. Kxb2 {[%clk 0:00:02.9]} 30... Bxf5 {[%clk
0:00:07.1]} 31. Rxf5 {[%clk 0:00:02.4]} 31... Re7 {[%clk 0:00:07.9]} 32. Rgf1
{[%clk 0:00:02.8]} 32... Kd7 {[%clk 0:00:07.1]} 33. Kc3 {[%clk 0:00:03.3]} 33...
Ke8 {[%clk 0:00:07.5]} 34. Rg5 {[%clk 0:00:03.1]} 34... Ng4 {[%clk 0:00:06.5]}
35. Re1 {[%clk 0:00:03.2]} 35... g6 {[%clk 0:00:05.4]} 36. Ra5 {[%clk
0:00:03.3]} 36... Re6 {[%clk 0:00:03.3]} 37. Rxa6 {[%clk 0:00:03.2]} 37... Rd6
{[%clk 0:00:03.2]} 38. Kb4 {[%clk 0:00:02.3]} 38... Rd3 {[%clk 0:00:02.8]} 39.
Kc5 {[%clk 0:00:02.9]} 39... f5 {[%clk 0:00:02.4]} 40. Kxc6 {[%clk 0:00:03.2]}
40... Nxe3 {[%clk 0:00:02.6]} 41. b4 {[%clk 0:00:03.8]} 41... Nxc4 {[%clk
0:00:01.6]} 42. b5 {[%clk 0:00:04.5]} 42... Ne5+ {[%clk 0:00:01.2]} 43. Kc7
{[%clk 0:00:04.5]} 1-0